Cogmind - Beta 16 @@@ ROGUE MODE // 2026.01.22 @ 13:32:43 Player: winnking222 Result: Destroyed by S-10 Pest with Light Assault Rifle Performance ------------- Evolutions (2) 1000 Regions Visited (9) 1800 Robots Destroyed (227) 1135 Value Destroyed (7126) 7126 Prototype IDs (46) 920 Alien Tech Used (0) 0 Bonus (4167) 4167 TOTAL SCORE: 16148 Bonus ------- High Alert Combat Kills 1343 Follower Combat Kills 124 Entered Garrisons 400 Used RIF Installer 2000 Aligned with FarCom 300 Cogmind --------- Core Integrity 0/550 Matter 300/300 Energy 310/310 System Corruption 8% Temperature Cool (0) Movement Treading (216) Ox1 Location -8/Garrison Parts ------- > --- POWER (1) -------- Reinforced Fission Core > --- PROPULSION (3) --- Light Treads Light Treads (fused) Armored Treads > --- UTILITY (4) ------ Improved Cooling System Huge Storage Unit Experimental Targeting Computer Relay Coupler [Grunt] (26) > --- WEAPON (3) ------- Plasma Cannon (fused) Plasma Cannon Remote Datajack > --- INVENTORY (25) --- Reinforced Deuterium Engine Advanced Heat Sink Experimental Heat Sink Huge Storage Unit Lightpack 2.0 High-capacity Matter Pod (200) Graphene Brace Relay Coupler [NC] (43) Relay Coupler [NC] (40) Relay Coupler [Sentry] (34) Relay Coupler [Sentry] (38) Relay Coupler [Specialist] (37) Relay Coupler [Hunter] (29) Relay Coupler [Heavy] (24) Plasma Cannon Plasma Cannon Guided Plasma Cannon Enhanced Autogun Enhanced Autogun Rocket Launcher Plasma Cutter Katana Peak State ------------ > --- POWER ------------ Reinforced Deuterium Engine > --- PROPULSION ------- Light Treads Light Treads Armored Treads > --- UTILITY ---------- Improved Cooling System Huge Storage Unit Experimental Targeting Computer Relay Coupler [NC] > --- WEAPON ----------- AWS/Gauss Katana > --- INVENTORY -------- Reinforced Fission Core Experimental Heat Sink Huge Storage Unit Lightpack 2.0 High-capacity Matter Pod Gravity Neutralizer Graphene Brace Relay Coupler [NC] Relay Coupler [NC] Relay Coupler [Grunt] Relay Coupler [Grunt] Relay Coupler [Sentry] Relay Coupler [Sentry] Relay Coupler [Specialist] Relay Coupler [Hunter] Plasma Cannon Plasma Cannon Plasma Cannon Guided Plasma Cannon Gauss Rifle 8R-AWN's Boregun Rocket Launcher Plasma Cutter [Rating: 52] Favorites ----------- Power Reinforced Deuterium Engine Engine Reinforced Deuterium Engine Power Core Reinforced Fission Core Propulsion Light Treads Treads Light Treads Wheel Compact Wheel Flight Unit Improved VTOL Module Utility Huge Storage Unit Device Hardlight Generator Storage Huge Storage Unit Processor Experimental Targeting Computer Hackware Relay Coupler [Grunt] Protection Light Armor Plating Weapon Heavy Assault Rifle Energy Gun Improved EM Shotgun Energy Cannon Plasma Cannon Ballistic Gun Heavy Assault Rifle Launcher Rocket Launcher Special Weapon Remote Datajack Slashing Weapon Katana Special Melee Weapon Improved Datajack Build | -11 -10 -9 -9 -9 -8 -8 -8 -8 -8 ------- Run | Yrd Mat Mat Min Exi Min Mat Gar Mat Gar Slots Evolved 4 | . . 2 . . . 2 . . . Power . | . . . . . . . . . . Propulsion 1 | . . 1 . . . . . . . Utility 2 | . . . . . . 2 . . . Weapon 1 | . . 1 . . . . . . . Parts Attached 112 | 7 9 29 . 11 1 22 9 19 5 Power 13 | 1 2 4 . 1 . 3 . 2 . Engine 12 | 1 2 4 . 1 . 3 . 1 . Core 1 | . . . . . . . . 1 . Reactor . | . . . . . . . . . . Propulsion 37 | 2 2 10 . 4 . 10 2 6 1 Treads 34 | 2 . 10 . 4 . 9 2 6 1 Leg . | . . . . . . . . . . Wheel 2 | . 2 . . . . . . . . Hover . | . . . . . . . . . . Flight 1 | . . . . . . 1 . . . Utility 25 | 2 2 3 . 3 . 7 3 4 1 Device 6 | 1 1 . . . . 2 1 1 . Storage 4 | 1 1 . . . . 1 . 1 . Processor 1 | . . . . . . 1 . . . Hackware 4 | . . . . . . . 2 1 1 Protection 10 | . . 3 . 3 . 3 . 1 . Artifact . | . . . . . . . . . . Weapon 37 | 2 3 12 . 3 1 2 4 7 3 Energy Gun 1 | . . 1 . . . . . . . Energy Cannon 7 | . . . . . . . . 6 1 Ballistic Gun 23 | 2 3 11 . 1 1 2 3 . . Ballistic Cannon . | . . . . . . . . . . Launcher 1 | . . . . 1 . . . . . Special Weapon 2 | . . . . . . . . . 2 Impact Weapon . | . . . . . . . . . . Slashing Weapon 1 | . . . . . . . 1 . . Piercing Weapon . | . . . . . . . . . . Special Melee Weapon 2 | . . . . 1 . . . 1 . Unidentified Prototypes 4 | . . 2 . . . 1 . 1 . Parts Lost 26 | . 3 3 . 8 . . 7 4 1 Power 4 | . 1 1 . 1 . . . 1 . Propulsion 9 | . . 2 . 3 . . 3 . 1 Utility 7 | . 1 . . 3 . . 2 1 . Weapon 6 | . 1 . . 1 . . 2 2 . Highest Loss Streak 7 | . 2 2 . 7 . . 4 2 1 To Critical Strikes 5 | . . 1 . 4 . . . . . Average Backups 20 | 5 15 24 24 15 22 21 21 22 22 Power 1 | . . . 1 1 1 1 1 . 1 Propulsion 5 | 3 7 6 7 4 5 8 2 1 1 Utility 8 | . 2 7 7 3 7 7 12 13 12 Weapon 5 | . 3 7 7 4 7 4 4 6 6 Tool/Special . | . . . . . . . . . . Unused Backups 63 | . 4 12 . 4 . 9 13 4 17 Power 5 | . . . . 3 . . . 1 1 Propulsion 25 | . 3 6 . . . 8 8 . . Utility 21 | . . 2 . . . 1 4 1 13 Weapon 12 | . 1 4 . 1 . . 1 2 3 Tool/Special . | . . . . . . . . . . Average Slot Usage (%) 97 | . 99 99 100 90 100 99 89 97 99 Engine 9 | . 13 10 11 10 11 9 9 4 . Core 1 | . . . . . . . . 4 9 Treads 27 | . 16 32 33 32 33 26 19 25 26 Wheel 2 | . 11 . . . . . 6 1 . Device 5 | . 13 . . . . 8 8 9 9 Storage 10 | . 14 11 11 11 11 9 9 9 9 Processor 4 | . . . . . . 8 9 9 9 Hackware 1 | . . . . . . . . 8 9 Protection 6 | . . 10 11 11 11 8 3 . . Energy Cannon 3 | . . . . . . . . 14 23 Ballistic Gun 22 | . 27 32 33 19 33 26 18 1 . Special Melee Weapon 1 | . . . . 3 . . . 5 . Peak Build Rating 52 | 7 11 18 17 24 24 48 48 52 52 Average Rating 29 | 6 8 15 17 14 24 42 47 45 49 On Entrance 24 | . 7 11 17 17 24 24 48 48 47 Avg Prop Armor Cover (%) 8 | . 12 13 . . . . 7 2 7 Naked Turns . | . . . . . . . . . . Heaviest Build 127 | 13 90 103 103 103 99 120 120 121 127 Greatest Support 60 | 40 40 60 60 60 60 60 60 60 60 Greatest Overweight (x) 7 | . 5 6 1 2 1 2 7 2 2 Average Overweight (x) 1 | . 4 1 1 1 1 1 3 1 1 Largest Inventory Capacity 25 | 8 25 25 25 25 25 25 25 25 25 Average Capacity 24 | 7 22 25 25 25 25 25 25 25 25 Most Carried 25 | 7 25 25 25 25 25 25 25 25 25 Average Carried 22 | 5 15 24 24 16 24 24 24 24 24 Final Capacity 25 | 8 25 25 25 25 25 25 25 25 25 Final Carried 25 | 7 25 24 25 25 25 25 25 25 24 Class Distribution -------------------- 39% | Scavenger-Tank 14% | Tank 14% | Scavenger-Mutant 12% | Mutant 7% | Bothacker-Mutant 4% | Scavenger-Gunner 4% | Botlord-Gunner Dominant Class ---------------- Mutant | -10/Materials Scavenger-Tank | -9/Materials Scavenger-Tank | -9/Mines Scavenger-Tank | -9/Exiles Tank | -8/Mines Scavenger-Tank | -8/Materials Scavenger-Mutant | -8/Garrison Bothacker-Mutant | -8/Materials Botlord-Gunner | -8/Garrison Resources | -11 -10 -9 -9 -9 -8 -8 -8 -8 -8 ----------- Run | Yrd Mat Mat Min Exi Min Mat Gar Mat Gar Matter Collected 5997 | 360 552 1471 110 404 49 1721 834 337 159 Remotely . | . . . . . . . . . . Salvage Created 8581 | 266 665 1621 122 111 . 2413 1424 1349 610 Parts 521 | 28 48 116 14 6 . 143 77 49 40 Haulers Intercepted 11 | . 1 3 . . . 5 . 2 . Recyclers Shooed 1 | . 1 . . . . . . . . Parts Field Recycled . | . . . . . . . . . . Retrieved Matter . | . . . . . . . . . . Parts Self-Destructed . | . . . . . . . . . . Prevented . | . . . . . . . . . . Parts Restored . | . . . . . . . . . . Kills | -11 -10 -9 -9 -9 -8 -8 -8 -8 -8 ------- Run | Yrd Mat Mat Min Exi Min Mat Gar Mat Gar Combat Hostiles Destroyed 179 | . 20 34 9 6 . 38 36 22 14 Guns 144 | . 20 34 9 1 . 38 36 6 . Cannons 28 | . . . . . . . . 15 13 AOE 5 | . . . . 5 . . . . . Classes Destroyed 16 | 3 4 2 1 1 . 4 1 . . Worker 9 | 1 4 2 . . . 1 . 1 . Tunneler 7 | 7 . . . . . . . . . Hauler 11 | . 1 3 . . . 5 . 2 . Recycler 8 | 1 . 2 . . . 4 . 1 . Operator 2 | . . 2 . . . . . . . Watcher 16 | . 3 5 . . . 4 . 3 1 Swarmer 63 | . 12 15 8 . . 10 13 3 2 Grunt 62 | . 8 9 . . . 16 13 15 1 Brawler 2 | . . . . . . 1 1 . . Duelist 5 | . . . . . . 1 3 . 1 Sentry 21 | . . 10 . . . 8 . 3 . Demolisher 1 | . . . 1 . . . . . . Hunter 3 | . . . . . . 1 1 . 1 Programmer 13 | . . . . . . . 4 . 9 Heavy 2 | . . . . . . 1 . 1 . Assembled 5 | . . . . 5 . . . . . Thug 1 | . . . . . . . 1 . . Best Kill Streak 14 | 3 5 5 4 5 . 5 14 5 3 Combat Bots Only 14 | . 4 5 4 5 . 5 14 4 3 Max Kills in Single Turn 3 | 2 1 2 2 1 . 3 2 2 1 Gunslinging 1 | . . 1 1 . . 1 1 . . Exploded 1 | . . . . 1 . . . . . Melee . | . . . . . . . . . . Uniques/NPCs Destroyed 1 | . . . . 1 . . . . . 8R-AWN (-9/Exiles) Combat | -11 -10 -9 -9 -9 -8 -8 -8 -8 -8 -------- Run | Yrd Mat Mat Min Exi Min Mat Gar Mat Gar Hostile Shots Fired 755 | . 97 108 25 96 . 133 134 102 60 Missed 186 | . 24 25 8 17 . 41 35 21 15 Hits 569 | . 73 83 17 79 . 92 99 81 45 Melee 1 | . . . . . . 1 . . . Projectile 568 | . 73 83 17 79 . 91 99 81 45 AOE 2 | . . . . . . 2 . . . Critical Strikes 54 | . 1 6 . 34 . 3 5 4 1 Part Disruptions 1 | . . . . . . . . . 1 Damage Taken 7412 | . 654 974 139 1354 . 1049 1230 1548 464 Core 926 | . 124 59 7 183 . 185 184 142 42 Absorbed by Shields 448 | . . . . . . 296 152 . . Regen/Repaired (Parts) 276 | . . . . . . . . 276 . Core Remaining (%) 62 | 100 50 . . . 37 . . . . Volleys Fired 476 | 15 83 84 10 35 . 98 54 59 38 Largest 3 | 2 2 3 3 3 . 3 3 2 2 Hottest 160 | 40 40 69 69 69 . 76 81 160 160 Shots Fired 1258 | 30 164 251 30 85 . 294 214 133 57 Gun 1076 | 30 164 251 30 77 . 294 214 16 . Cannon 171 | . . . . . . . . 117 54 Launcher 8 | . . . . 8 . . . . . Special 3 | . . . . . . . . . 3 Kinetic 1076 | 30 164 251 30 77 . 294 214 16 . Thermal 171 | . . . . . . . . 117 54 Explosive 8 | . . . . 8 . . . . . Electromagnetic . | . . . . . . . . . . Robot Hit Streak 36 | 5 9 11 6 18 . 31 30 36 16 Robot Miss Streak 6 | 2 6 3 3 2 . 3 3 2 4 Penetration Max 2 | . . . . . . 2 2 . . Secondary Targets 22 | . 1 4 2 . . 10 5 . . Max Gunslinging Chain 1 | . 1 1 1 . . 1 1 . . Autonomous 81 | . . . . . . . 64 17 . Shots Hit Robots 840 | 18 92 143 15 69 . 208 149 115 31 Core Hits 339 | 10 38 66 10 20 . 81 56 41 17 Critical Kills 19 | . 1 . . . . 10 5 2 1 Critical Parts Destroyed 23 | . 2 1 . . . 8 12 . . Critical Strikes 43 | . 3 1 . 1 . 18 17 2 1 Meltdown 2 | . . . . . . . . 1 1 Destroy 41 | . 3 1 . 1 . 18 17 1 . Melee Attacks 40 | . . . . 4 . . 21 9 6 Impact . | . . . . . . . . . . Slashing 23 | . . . . . . . 21 2 . Piercing . | . . . . . . . . . . Sneak Attacks 12 | . . . . 4 . . . 5 3 Combat Hostiles . | . . . . . . . . . . Follow-up Attacks . | . . . . . . . . . . Damage Inflicted 16353 | 225 1148 2229 244 1305 . 3319 3743 2992 1148 Guns 11811 | 225 1148 2229 244 928 . 3302 3361 374 . Cannons 3656 | . . . . . . . . 2508 1148 Explosions 377 | . . . . 377 . . . . . Melee 492 | . . . . . . . 382 110 . Ramming 17 | . . . . . . 17 . . . Kinetic 11811 | 225 1148 2229 244 928 . 3302 3361 374 . Thermal 3656 | . . . . . . . . 2508 1148 Explosive 377 | . . . . 377 . . . . . Electromagnetic . | . . . . . . . . . . Impact . | . . . . . . . . . . Slashing 492 | . . . . . . . 382 110 . Piercing . | . . . . . . . . . . Highest Corruption 8 | . 2 . . . . . 6 6 8 Average Corruption 5 | . 2 . . . . . 5 6 7 Corruption Purged . | . . . . . . . . . . Corruption Blocked . | . . . . . . . . . . Effects 134 | . 12 . . . . . 42 46 34 Message Errors 30 | . 2 . . . . . 10 11 7 Matter Fused 32 | . 5 . . . . . 13 9 5 Heat Flow Errors 14 | . 1 . . . . . 6 4 3 Energy Discharges 15 | . 1 . . . . . 2 5 7 Parts Rejected 2 | . . . . . . . . 2 . Parts Fused 2 | . . . . . . . . 1 1 Data Loss (minor) 19 | . 1 . . . . . 3 9 6 Data Loss (major) 5 | . 1 . . . . . 2 2 . Misfires 4 | . . . . . . . 2 2 . Alerts 2 | . . . . . . . 1 . 1 Weapon Failures 9 | . 1 . . . . . 3 1 4 Overload Shots . | . . . . . . . . . . Overflow Damage 176 | . . . . 22 . . 43 68 43 Projectiles 95 | . . . . . . . . 52 43 Explosions 22 | . . . . 22 . . . . . Melee 59 | . . . . . . . 43 16 . Knockbacks . | . . . . . . . . . . Impact . | . . . . . . . . . . Kinetic . | . . . . . . . . . . Secondary . | . . . . . . . . . . Self-Inflicted Damage . | . . . . . . . . . . Shots . | . . . . . . . . . . Rammed 1 | . . . . . . 1 . . . Targets Rammed 1 | . . . . . . 1 . . . Kicked . | . . . . . . . . . . Crushed . | . . . . . . . . . . Highest Temperature 306 | . 195 108 93 142 . 263 306 249 161 Average Temperature 58 | . 72 29 38 60 . 60 90 66 47 Received Heat Transfer 1769 | . 156 342 . . . 311 294 594 72 Siege Activations . | . . . . . . . . . . Martial Activations . | . . . . . . . . . . Shielding Activations . | . . . . . . . . . . Robots Disrupted . | . . . . . . . . . . Combat Hostiles . | . . . . . . . . . . Robots Corrupted . | . . . . . . . . . . Combat Hostiles . | . . . . . . . . . . Parts Fried . | . . . . . . . . . . Impact Corruptions . | . . . . . . . . . . Robots Melted 2 | . . . . . . . . 1 1 Combat Hostiles 2 | . . . . . . . . 1 1 Parts Melted 16 | . . . . . . . . 11 5 Heat Transferred 6997 | . . . . . . . . 4917 2080 Parts Sabotaged . | . . . . . . . . . . Parts Stolen . | . . . . . . . . . . Parts Stripped . | . . . . . . . . . . Power Chain Reactions . | . . . . . . . . . . Alert | -11 -10 -9 -9 -9 -8 -8 -8 -8 -8 ------- Run | Yrd Mat Mat Min Exi Min Mat Gar Mat Gar Maximum Alert Level 4 | . . 1 . . . 2 4 3 3 Low Security (%) 51 | 100 100 70 100 . 100 61 . . . Level 1 11 | . . 29 . . . 20 7 . . Level 2 13 | . . . . . . 17 37 . 55 Level 3 18 | . . . . . . . 19 100 44 Level 4 4 | . . . . . . . 35 . . Level 5 . | . . . . . . . . . . High Security . | . . . . . . . . . . Max Security . | . . . . . . . . . . Peak Influence 1556 | 10 137 395 196 . . 544 1556 953 1060 Initial 758 | . . 15 106 . . . 348 758 555 Average 365 | 1 71 121 118 . . 175 882 860 753 Influence Increases 5489 | 45 549 1013 200 . . 1124 1298 705 555 Destroy 0b10 Robot/C 3580 | . 400 680 180 . . 760 760 440 360 Destroy 0b10 Robot/NC 270 | 45 40 70 . . . 70 5 35 5 Destroy Leader 662 | . 68 216 20 . . 198 30 100 30 Allied During Kill 32 | . . . . . . . 6 . 26 Successful Hack 115 | . 10 39 . . . 18 14 20 14 Disable Machine 105 | . 15 . . . . 30 . 60 . Anti-Garrison Action 450 | . . . . . . . 350 . 100 Destroy Structure 125 | . 1 8 . . . 18 73 20 5 Lose Combat Pursuer 150 | . 15 . . . . 30 60 30 15 Influence Decreases 4439 | 45 512 777 445 28 . 588 278 1406 360 Entered New Map 1503 | . . 22 167 28 . . 188 798 300 Time Decay 2546 | 45 482 585 278 . . 588 . 568 . Lost Part 170 | . 30 20 . . . . 70 40 10 Lost Ally 70 | . . . . . . . 20 . 50 Purge Threat 150 | . . 150 . . . . . . . Squads Dispatched 18 | . 2 5 . . . 5 . 6 . Investigation 3 | . . 1 . . . 1 . 1 . Extermination . | . . . . . . . . . . Reinforcement 11 | . 2 4 . . . 3 . 2 . Assault 4 | . . . . . . 1 . 3 . Garrison . | . . . . . . . . . . Intercept . | . . . . . . . . . . Searches Triggered . | . . . . . . . . . . Construction Impeded . | . . . . . . . . . . Haulers Reinforced . | . . . . . . . . . . Active Scanning Responses . | . . . . . . . . . . Cargo Convoy Interrupts . | . . . . . . . . . . Stealth | -11 -10 -9 -9 -9 -8 -8 -8 -8 -8 --------- Run | Yrd Mat Mat Min Exi Min Mat Gar Mat Gar Distress Signals 12 | . 3 4 . . . 3 . 2 . Communications Jammed . | . . . . . . . . . . Distress Signals . | . . . . . . . . . . Times Spotted 240 | . 30 50 7 9 . 49 40 35 20 Peak Tracking Total 11 | . 6 6 3 11 . 5 8 5 3 Tactical Retreats 12 | . 1 . . 2 . 2 4 2 1 Traps | -11 -10 -9 -9 -9 -8 -8 -8 -8 -8 ------- Run | Yrd Mat Mat Min Exi Min Mat Gar Mat Gar Traps Triggered 24 | . 4 2 . . . 4 10 1 3 Indirectly . | . . . . . . . . . . Trap Hack Attempts 53 | . . . . . . . . 53 . Triggered . | . . . . . . . . . . Disarmed . | . . . . . . . . . . Reprogrammed 2 | . . . . . . . . 2 . Reused . | . . . . . . . . . . Traps Extracted . | . . . . . . . . . . Installed . | . . . . . . . . . . Triggered . | . . . . . . . . . . Machines | -11 -10 -9 -9 -9 -8 -8 -8 -8 -8 ---------- Run | Yrd Mat Mat Min Exi Min Mat Gar Mat Gar Machines Disabled 16 | . 1 . . 5 . 2 2 4 2 Max in Single Turn 1 | . 1 . . 1 . 1 1 1 1 Garrison Relay 4 | . . . . . . . 3 . 1 Phase Generator 1 | . . . . . . . . . 1 Machines Repaired . | . . . . . . . . . . Machines Dismantled 1 | . . . . . . . . . 1 Machines Sabotaged . | . . . . . . . . . . Overloaded Fab Kills . | . . . . . . . . . . Hacking | -11 -10 -9 -9 -9 -8 -8 -8 -8 -8 --------- Run | Yrd Mat Mat Min Exi Min Mat Gar Mat Gar Machines Accessed 38 | . 6 9 . 2 . 11 2 6 2 Terminals 31 | . 6 8 . . . 9 2 4 2 Fabricators . | . . . . . . . . . . Repair Stations . | . . . . . . . . . . Recycling Units . | . . . . . . . . . . Scanalyzers 3 | . . 1 . . . 1 . 1 . Garrison Access 2 | . . . . . . 1 . 1 . Total Hacks 96 | . 14 35 . 2 . 25 4 13 3 Successful 63 | . 11 25 . 2 . 14 1 9 1 Failed 32 | . 3 9 . . . 11 3 4 2 Catastrophic 2 | . . . . . . 1 . . 1 Database Lockouts 1 | . . 1 . . . . . . . Manual 50 | . 10 15 . 1 . 18 . 6 . Terminals 83 | . 14 30 . . . 22 4 10 3 Fabricators . | . . . . . . . . . . Repair Stations . | . . . . . . . . . . Recycling Units . | . . . . . . . . . . Scanalyzers 9 | . . 5 . . . 2 . 2 . Garrison Access 2 | . . . . . . 1 . 1 . Terminal Hacks 23 | . 3 11 . 2 . 2 1 3 1 Record 1 | . . . . 1 . . . . . Part Schematic 1 | . . 1 . . . . . . . Prototype ID Bank 4 | . 1 3 . . . . . . . Branch Access Points 1 | . . 1 . . . . . . . Emergency Access Points 2 | . 1 1 . . . . . . . Unreport Threat 1 | . . 1 . . . . . . . Locate Traps 4 | . 1 2 . . . . . 1 . Recall Investigation 1 | . . . . . . . . 1 . Hauler Manifests 2 | . . . . . . 1 . 1 . Zone Layout 3 | . . 2 . . . 1 . . . Patrol Navigation 2 | . . . . . . . 1 . 1 Proto ID Catalog 1 | . . . . 1 . . . . . Fabricator Hacks . | . . . . . . . . . . Repair Station Hacks . | . . . . . . . . . . Recycling Unit Hacks . | . . . . . . . . . . Scanalyzer 7 | . . 4 . . . 1 . 2 . Retrieve Study 7 | . . 4 . . . 1 . 2 . Garrison Access Hacks 2 | . . . . . . 1 . 1 . Unlock Access 2 | . . . . . . 1 . 1 . Unauthorized Hacks 31 | . 8 10 . . . 10 . 3 . Terminals 31 | . 8 10 . . . 10 . 3 . Botnet 14 | . 3 5 . . . 4 . 2 . Skim 17 | . 5 5 . . . 6 . 1 . Fabricators . | . . . . . . . . . . Repair Stations . | . . . . . . . . . . Recycling Units . | . . . . . . . . . . Scanalyzers . | . . . . . . . . . . Garrison Access . | . . . . . . . . . . Data Cores Recovered 1 | . . 1 . . . . . . . Used . | . . . . . . . . . . Hacking Detections 21 | . 4 3 . . . 7 1 5 1 Full Trace Events 4 | . . . . . . 3 1 . . Feedback Events . | . . . . . . . . . . Feedback Blocked . | . . . . . . . . . . Robot Schematics Acquired . | . . . . . . . . . . Robots Built . | . . . . . . . . . . Authchips . | . . . . . . . . . . Time . | . . . . . . . . . . Total Robot Build Rating . | . . . . . . . . . . Part Schematics Acquired 1 | . . 1 . . . . . . . Parts Built . | . . . . . . . . . . Authchips . | . . . . . . . . . . Time . | . . . . . . . . . . Total Part Build Rating . | . . . . . . . . . . Part Studies Acquired 6 | . . 4 . . . 1 . 1 . Parts Repaired . | . . . . . . . . . . Time . | . . . . . . . . . . Parts Recycled . | . . . . . . . . . . Recycled Matter . | . . . . . . . . . . Retrieved Matter . | . . . . . . . . . . Retrieved Components . | . . . . . . . . . . Parts Scanalyzed . | . . . . . . . . . . Part Schematics Acquired . | . . . . . . . . . . Parts Damaged . | . . . . . . . . . . Bothacking | -11 -10 -9 -9 -9 -8 -8 -8 -8 -8 ------------ Run | Yrd Mat Mat Min Exi Min Mat Gar Mat Gar Used RIF Installer 4 | . . . . . . . 2 . 2 Coupler Efficiency 1 | . . . . . . . . . 1 Hotswap 1 | . . . . . . . 1 . . Structural Interface 1 | . . . . . . . . . 1 Robots Hacked 10 | . . . . 4 . . . 3 3 Non-combat 5 | . . . . 3 . . . 2 . Combat 5 | . . . . 1 . . . 1 3 Robot Hacks Applied 11 | . . . . 4 . . . 4 3 parse_system 4 | . . . . 4 . . . . . find_garrison 1 | . . . . . . . . 1 . overwrite_iff 1 | . . . . . . . . 1 . formatsys_low 1 | . . . . . . . . 1 . formatsys_high 4 | . . . . . . . . 1 3 Relay Couplers Released 21 | . . . . . . . 14 . 7 Machine Destruction 16 | . . . . . . . 12 . 4 Programmers 5 | . . . . . . . 2 . 3 Attached 4 | . . . . . . . 2 1 1 Fabnet Peak Effective % . | . . . . . . . . . . Robots Rewired . | . . . . . . . . . . Allies Hacked 2 | . . . . . . . . . 2 Hacks Repelled . | . . . . . . . . . . Allies | -11 -10 -9 -9 -9 -8 -8 -8 -8 -8 -------- Run | Yrd Mat Mat Min Exi Min Mat Gar Mat Gar Total Allies 8 | . . . . . . . 2 3 3 Largest Group 4 | . . . . . . . 2 3 4 Highest-Rated Group 70 | . . . . . . . 70 40 61 Highest-Rated Ally 39 | . . . . . . . 39 16 16 Total Orders 4 | . . . . . . . . 3 1 STAY 2 | . . . . . . . . 1 1 FOLLOW 1 | . . . . . . . . 1 . AID 1 | . . . . . . . . 1 . Ally Attacks 29 | . . . . . . . 8 6 15 Total Damage 322 | . . . . . . . 122 63 137 Kills 6 | . . . . . . . 2 . 4 Allies Corrupted . | . . . . . . . . . . Allies Melted . | . . . . . . . . . . Intel | -11 -10 -9 -9 -9 -8 -8 -8 -8 -8 ------- Run | Yrd Mat Mat Min Exi Min Mat Gar Mat Gar Active Infowar (turns) 1766 | 103 1566 97 . . . . . . . Seismic 1766 | 103 1566 97 . . . . . . . Robot Analysis Total . | . . . . . . . . . . Derelict Logs Recovered 2 | . . . 2 . . . . . . Drone Launches . | . . . . . . . . . . Drone Recoveries . | . . . . . . . . . . Exploration | -11 -10 -9 -9 -9 -8 -8 -8 -8 -8 ------------- Run | Yrd Mat Mat Min Exi Min Mat Gar Mat Gar Turns Passed 15112 | 273 1586 2802 600 1885 603 2867 1854 1705 937 Spaces Moved 5994 | 135 565 1109 281 852 301 1157 710 592 292 Core 10 | 10 . . . . . . . . . Treads 5266 | 125 115 1102 281 852 301 1157 449 592 292 Legs . | . . . . . . . . . . Wheels 718 | . 450 7 . . . . 261 . . Hover . | . . . . . . . . . . Flight . | . . . . . . . . . . Fastest Speed 50 | 50 160 175 200 200 200 200 180 216 216 Average Speed 210 | 151 178 216 200 200 200 212 216 223 266 Slowest Speed 320 | 160 320 320 200 240 200 240 240 298 285 Overloaded Moves . | . . . . . . . . . . Propulsion Burnouts . | . . . . . . . . . . Robots Hopped . | . . . . . . . . . . Potential Cave-ins . | . . . . . . . . . . Cave-ins Triggered . | . . . . . . . . . . Exploration Rate (%) 65 | 8 89 96 60 71 69 94 71 51 42 Regions Visited 9 Branch Regions 3 Pre-discovered Areas 6 | . 2 2 1 1 . . . . . Known Exits Taken 3 | . . 1 . . . 1 . 1 . Unknown Exits Taken 5 | 1 1 . 1 1 1 . . . . Scrap Searched 3 | . . . 2 . 1 . . . . Spaces Dug 1 | . . . . . . . . 1 . Terrain Destroyed 96 | . . . . 36 . 21 20 19 . Melee . | . . . . . . . . . . Projectile 58 | . . . . . . 21 18 19 . AOE 36 | . . . . 36 . . . . . Terrain Rammed . | . . . . . . . . . . Walls Destroyed . | . . . . . . . . . . Machines Disabled . | . . . . . . . . . . Actions | -11 -10 -9 -9 -9 -8 -8 -8 -8 -8 --------- Run | Yrd Mat Mat Min Exi Min Mat Gar Mat Gar Total 7603 | 173 987 1360 301 983 303 1377 892 859 368 Wait 526 | 3 280 76 10 1 . 36 36 79 5 Move 5986 | 134 564 1108 280 851 300 1157 708 592 292 Hop . | . . . . . . . . . . Pick Up 167 | 14 36 18 1 41 1 17 20 17 2 Fast Attach 26 | . . 8 . . . 12 1 5 . Attach 50 | 7 10 4 . 12 . 2 7 7 1 Detach 1 | . . . . . . . 1 . . Swap 82 | . 5 24 . 3 1 21 3 15 10 Drop 155 | . 9 38 . 36 1 33 15 22 1 Fire 476 | 15 83 84 10 35 . 98 54 59 38 Melee 40 | . . . . 4 . . 21 9 6 Ram . | . . . . . . . . . . Kick . | . . . . . . . . . . Crush 1 | . . . . . . 1 . . . Escape Stasis 30 | . . . . . . . 26 . 4 Rewire 1 | . . . . . . . . 1 . Trap 53 | . . . . . . . . 53 . Miscellaneous 9 | . . . . . . . . . 9 Route ------- -11/Scrapyard -10/Materials (discovered 4 exits: *Mat x2 / [*Min x2]) -9/Materials (discovered 4 exits: *Mat x3 / *Min) -9/Mines (discovered 2 exits: *Mat / *Exi) -9/Exiles -8/Mines (discovered 2 exits: *Mat x2) -8/Materials (discovered 4 exits: *Fac x3 / Gar) -8/Garrison (discovered 3 exits: *Mat x3) -8/Materials (discovered 3 exits: *Fac x2 / Gar) -8/Garrison History --------- Turn | Location | Event 18 | -11/Scrapyard | Discovered new exit (range 15) 274 | -11/Scrapyard | Entered Materials 313 | -10/Materials | Build established: Mutant 450 | -10/Materials | Discovered new exit (range 6) 1012 | -10/Materials | Discovered new exit (range 11) 1415 | -10/Materials | Discovered new exit (range 16) 1502 | -10/Materials | Learned location of Mines (-10) 1561 | -10/Materials | Learned Storage emergency access door positions 1608 | -10/Materials | Learned location of Subcaves (-10) 1615 | -10/Materials | Discovered new exit (range 16) 1644 | -10/Materials | Learned Storage trap positions 1668 | -10/Materials | Learned location of 1 exit from Storage 1703 | -10/Materials | Learned Storage trap positions 1750 | -10/Materials | Learned location of 1 exit from Storage 1860 | -10/Materials | Entered another Materials area 1860 | -9/Materials | Evolved 2 slots: Propulsion x1, Weapon x1 2252 | -9/Materials | Build established: Tank 2273 | -9/Materials | Discovered new exit (range 8) 3121 | -9/Materials | Central database locked down 3232 | -9/Materials | Build established: Scavenger-Tank 3251 | -9/Materials | Discovered new exit (range 10) 3428 | -9/Materials | Learned location of 1 exit from Recycling 3482 | -9/Materials | Loaded intel: 9 trap records 3576 | -9/Materials | Discovered new exit (range 15) 3580 | -9/Materials | Learned 4 Recycling zone layouts 3658 | -9/Materials | Learned Materials emergency access door positions 3972 | -9/Materials | Identified exit to Mines 4662 | -9/Materials | Entered Mines 4926 | -9/Mines | Discovered new exit (range 6) 5050 | -9/Mines | Assembled infested the area 5134 | -9/Mines | Met 8R-AWN 5254 | -9/Mines | Discovered new exit (range 5) 5262 | -9/Mines | Entered Exiles 5316 | -9/Exiles | Welcomed by 8R-AWN 5344 | -9/Exiles | Met EX-HEX 5432 | -9/Exiles | Learned location of Zion (-6) 5464 | -9/Exiles | Met EX-BIN 5492 | -9/Exiles | Aligned with FarCom system 5494 | -9/Exiles | Given EX-Vault access code 5540 | -9/Exiles | Opened EX-Vault 5558 | -9/Exiles | Found Gui. Plasma Cannon 5601 | -9/Exiles | Warned to stay clear of 0b10 Research branches 5665 | -9/Exiles | Met EX-DEC 6094 | -9/Exiles | Learned about 8R-AWN's background 6176 | -9/Exiles | Build established: Scavenger-Mutant 6372 | -9/Exiles | Found Lightpack 2.0 6377 | -9/Exiles | Found AWS/Gauss 6756 | -9/Exiles | Attacked by the Exiles 6899 | -9/Exiles | Core integrity fell below 50% 6948 | -9/Exiles | Destroyed 8R-AWN 6978 | -9/Exiles | Lost 7 parts (1p2n3u1w) 7001 | -9/Exiles | Found Exp. Targeting Computer 7007 | -9/Exiles | Found 8R-AWN's Boregun 7123 | -9/Exiles | Discovered new exit (range 10) 7136 | -9/Exiles | Build established: Tank 7147 | -9/Exiles | Stole three prototypes: Lightpack 2.0, Gui. Plasma Cannon, AWS/Gauss 7147 | -9/Exiles | Entered Mines 7330 | -8/Mines | Discovered new exit (range 16) 7466 | -8/Mines | Discovered new exit (range 6) 7750 | -8/Mines | Entered Materials 7750 | -8/Materials | Evolved 2 slots: Utility x2 7751 | -8/Materials | Identified exit to Factory 8167 | -8/Materials | Build established: Scavenger-Gunner 8542 | -8/Materials | Build established: Scavenger-Tank 9126 | -8/Materials | Discovered exit to Factory (range 9) 9429 | -8/Materials | Discovered exit to Factory (range 5) 10550 | -8/Materials | First assault squad dispatched 10617 | -8/Materials | Identified exit to Garrison 10617 | -8/Materials | Entered Garrison 10623 | -8/Garrison | Triggered checkpoint 10737 | -8/Garrison | Rescued a captive Derelict 10738 | -8/Garrison | Rescued a captive Derelict 10798 | -8/Garrison | P-60 Hacker assimilated allied DS-L5G(g) 11005 | -8/Garrison | Installed Relay Interface Framework 11459 | -8/Garrison | Core integrity fell below 50% 11485 | -8/Garrison | Triggered checkpoint 11553 | -8/Garrison | Destroyed 14 combat bots 11554 | -8/Garrison | Lost 4 parts (2n1u1w) 11591 | -8/Garrison | Discovered new exit (range 10) 11696 | -8/Garrison | Destroyed 9 combat bots 11738 | -8/Garrison | Build established: Scavenger-Gunner 11969 | -8/Garrison | Discovered new exit (range 12) 12038 | -8/Garrison | Build established: Scavenger-Mutant 12140 | -8/Garrison | Expanded RIF knowledge: Hotswap 12278 | -8/Garrison | Discovered new exit (range 8) 12347 | -8/Garrison | Garrison Relay disabled 12404 | -8/Garrison | Garrison Relay disabled 12471 | -8/Garrison | Entered Materials 12838 | -8/Materials | AWS/Gauss suddenly broke down 12871 | -8/Materials | First assault squad dispatched 13353 | -8/Materials | Core integrity fell below 20% 13396 | -8/Materials | Build established: Bothacker-Mutant 13582 | -8/Materials | Discovered exit to Factory (range 4) 14147 | -8/Materials | Discovered exit to Factory (range 16) 14158 | -8/Materials | Identified exit to Garrison 14176 | -8/Materials | Entered Garrison 14176 | -8/Garrison | Accompanied by 2 allies 14285 | -8/Garrison | Expanded RIF knowledge: Structural Interface 14386 | -8/Garrison | Expanded RIF knowledge: Coupler Efficiency 14436 | -8/Garrison | Phase Generator disabled 14776 | -8/Garrison | Garrison Relay disabled 14804 | -8/Garrison | Triggered checkpoint 14903 | -8/Garrison | P-60 Hacker assimilated allied Trooper 3b 14932 | -8/Garrison | Triggered checkpoint 14990 | -8/Garrison | Build established: Botlord-Gunner 15113 | -8/Garrison | Destroyed by S-10 Pest with Light Assault Rifle Last Messages --------------- 15086_ Field strength at 10. 15087_ Stasis field depleted. 15087_ Triggered Stasis Trap. 15087_ A bubble of rippling energy engulfs the area. 15087_ Field strength at 70. 15089_ System corrupted: IFF burst signal emitted. 15090_ Field strength at 40. 15091_ Field strength at 10. 15092_ Stasis field depleted. 15098_ Flight Unit melted. 15098_ S-10 Pest destroyed. 15101_ System corrupted: Plasma Cannon failed to cycle. 15104_ Destroyed Lgt. Ion Engine. 15107_ System corrupted: Plasma Cannon failed to cycle. 15107_ Destroyed Flight Unit. 15107_ Arm. Treads destroyed. 15110_